Cogmind - Beta 15 @@@ ROGUE MODE // 2025.06.18 @ 22:51:18 Player: saltine Result: Destroyed self with Mini Grenade Launcher Performance ------------- Evolutions (1) 500 Regions Visited (6) 1200 Robots Destroyed (85) 425 Value Destroyed (1796) 1796 Prototype IDs (33) 660 Alien Tech Used (0) 0 Bonus (332) 332 TOTAL SCORE: 4913 Bonus ------- High Alert Combat Kills 37 Follower Combat Kills 111 Aligned with FarCom 300 Friendly Fire -116 Cogmind --------- Core Integrity 0/400 Matter 202/300 Energy 265/265 System Corruption 2% Temperature Cool (0) Movement Treading (480) Ox4 Location -8/Mines Parts ------- > --- POWER (1) -------- Improved Ion Engine > --- PROPULSION (2) --- Light Treads > --- UTILITY (3) ------ Huge Storage Unit > --- WEAPON (3) ------- Mini Grenade Launcher > --- INVENTORY (25) --- Light Nuclear Core Light Treads Light Treads Light Treads Light Treads Light Treads Improved Treads Armored Wheel Armored Wheel Armored Wheel Improved Heat Sink Faulty Experimental Sensor Array Light Armor Plating Light Armor Plating Hardened Light Armor Plating Hardened Light Armor Plating Heavy Assault Rifle Heavy Assault Rifle Heavy Assault Rifle Heavy Assault Rifle Improved Assault Rifle Improved Assault Rifle Rocket Launcher Improved Datajack Mining Laser Peak State ------------ > --- POWER ------------ Improved Ion Engine > --- PROPULSION ------- Armored Wheel Armored Wheel > --- UTILITY ---------- Huge Storage Unit Hardened Light Armor Plating Hardened Light Armor Plating > --- WEAPON ----------- Heavy Assault Rifle Heavy Assault Rifle Heavy Assault Rifle > --- INVENTORY -------- Light Nuclear Core Light Treads Light Treads Light Treads Light Treads Light Treads Light Treads Light Treads Compact Wheel Armored Wheel Armored Wheel Heat Sink Heat Sink Improved Heat Sink Medium Storage Unit Experimental Sensor Array Seismic Detector Heavy Assault Rifle Heavy Assault Rifle Heavy Assault Rifle Heavy Assault Rifle Heavy Assault Rifle Light Cannon Mining Laser Hammer [Rating: 21] Favorites ----------- Power Improved Ion Engine Engine Improved Ion Engine Power Core Light Nuclear Core Propulsion Light Treads Treads Light Treads Leg Aluminum Leg Wheel Compact Wheel Utility Huge Storage Unit Device Seismic Detector Storage Huge Storage Unit Protection Light Armor Plating Weapon Heavy Assault Rifle Energy Gun Medium Laser Ballistic Gun Heavy Assault Rifle Launcher Mini Grenade Launcher Special Weapon Mining Laser Build | -11 -10 -10 -9 -9 -9 -8 ------- Run | Yrd Mat Min Mat Min Exi Min Slots Evolved 2 | . . . 2 . . . Power . | . . . . . . . Propulsion . | . . . . . . . Utility 1 | . . . 1 . . . Weapon 1 | . . . 1 . . . Parts Attached 44 | 1 10 1 31 . . 1 Power 5 | . 2 1 2 . . . Engine 3 | . . 1 2 . . . Core 2 | . 2 . . . . . Reactor . | . . . . . . . Propulsion 11 | . 3 . 8 . . . Treads 7 | . 3 . 4 . . . Leg . | . . . . . . . Wheel 4 | . . . 4 . . . Hover . | . . . . . . . Flight . | . . . . . . . Utility 10 | 1 2 . 7 . . . Device 4 | 1 1 . 2 . . . Storage 2 | . 1 . 1 . . . Processor . | . . . . . . . Hackware . | . . . . . . . Protection 4 | . . . 4 . . . Artifact . | . . . . . . . Weapon 18 | . 3 . 14 . . 1 Energy Gun . | . . . . . . . Energy Cannon . | . . . . . . . Ballistic Gun 15 | . 3 . 12 . . . Ballistic Cannon . | . . . . . . . Launcher 2 | . . . 1 . . 1 Special Weapon 1 | . . . 1 . . . Impact Weapon . | . . . . . . . Slashing Weapon . | . . . . . . . Piercing Weapon . | . . . . . . . Special Melee Weapon . | . . . . . . . Unidentified Prototypes . | . . . . . . . Parts Lost 12 | . 1 1 5 . . 5 Power 3 | . 1 1 1 . . . Propulsion 2 | . . . 1 . . 1 Utility 3 | . . . 1 . . 2 Weapon 4 | . . . 2 . . 2 Highest Loss Streak 3 | . 1 1 2 . . 3 To Critical Strikes . | . . . . . . . Average Backups 20 | 6 9 9 23 25 25 25 Power . | 1 . . 1 1 1 1 Propulsion 8 | 4 3 4 9 9 9 9 Utility 4 | . 1 1 5 5 6 6 Weapon 6 | 1 3 4 8 8 8 8 Tool/Special . | . . . . . . . Unused Backups 33 | . 8 . 8 . . 17 Power 2 | . 1 . . . . 1 Propulsion 14 | . 3 . 4 . . 7 Utility 5 | . 1 . 1 . . 3 Weapon 11 | . 3 . 3 . . 5 Tool/Special 1 | . . . . . . 1 Average Slot Usage (%) 98 | . 98 99 99 100 100 92 Engine 8 | . 1 3 10 11 11 11 Core 2 | . 12 9 . . . . Treads 21 | . 25 28 18 22 22 21 Wheel 1 | . . . 2 . . . Device 8 | . 12 14 5 11 11 10 Storage 11 | . 14 14 11 11 11 11 Protection 10 | . . . 15 11 11 7 Ballistic Gun 31 | . 27 28 32 33 33 26 Peak Build Rating 21 | 7 10 9 21 18 18 18 Average Rating 15 | 6 9 8 17 18 18 17 On Entrance 12 | 6 7 9 8 18 18 18 Naked Turns . | . . . . . . . Heaviest Build 106 | 14 20 20 106 100 100 100 Greatest Support 40 | 20 40 40 40 40 40 40 Greatest Overweight (x) 4 | . . . 4 2 2 4 Average Overweight (x) 1 | . . . 2 2 2 2 Largest Inventory Capacity 25 | 8 10 10 25 25 25 25 Average Capacity 21 | 8 9 10 24 25 25 25 Most Carried 25 | 7 10 10 25 25 25 25 Average Carried 20 | 6 9 9 24 25 25 25 Final Capacity 25 | 8 10 10 25 25 25 25 Final Carried 25 | 7 9 10 25 25 25 25 Class Distribution -------------------- 55% | Tank 23% | Mutant 13% | Scavenger-Tank 5% | Skirmisher Dominant Class ---------------- Mutant | -10/Materials Mutant | -10/Mines Tank | -9/Materials Tank | -9/Mines Tank | -9/Exiles Skirmisher | -8/Mines Resources | -11 -10 -10 -9 -9 -9 -8 ----------- Run | Yrd Mat Min Mat Min Exi Min Matter Collected 2083 | 226 361 103 1258 36 . 99 Remotely . | . . . . . . . Salvage Created 2811 | 147 807 148 1620 43 . 46 Parts 180 | 12 46 12 96 9 . 5 Haulers Intercepted 8 | . 2 . 6 . . . Recyclers Shooed 4 | . 1 . 3 . . . Parts Field Recycled . | . . . . . . . Retrieved Matter . | . . . . . . . Parts Self-Destructed . | . . . . . . . Prevented . | . . . . . . . Kills | -11 -10 -10 -9 -9 -9 -8 ------- Run | Yrd Mat Min Mat Min Exi Min Combat Hostiles Destroyed 63 | . 18 5 36 3 . 1 Guns 63 | . 18 5 36 3 . 1 Classes Destroyed 9 | 2 5 . 1 . . 1 Builder 2 | . 1 1 . . . . Tunneler 5 | 4 . . . . . 1 Hauler 8 | . 2 . 6 . . . Recycler 4 | 1 1 . 2 . . . Mechanic 1 | . 1 . . . . . Swarmer 27 | . 6 3 14 3 . 1 Grunt 28 | . 12 2 13 . . 1 Sentry 9 | . . . 9 . . . Zionite 1 | . . . . . . 1 Best Kill Streak 6 | 2 5 3 6 3 . 1 Combat Bots Only 6 | . 4 3 6 3 . 1 Max Kills in Single Turn 2 | 1 1 1 2 1 . 1 Gunslinging 1 | . . . 1 . . . Exploded . | . . . . . . . Melee . | . . . . . . . Uniques/NPCs Destroyed . | . . . . . . . Combat | -11 -10 -10 -9 -9 -9 -8 -------- Run | Yrd Mat Min Mat Min Exi Min Hostile Shots Fired 316 | . 90 34 181 5 . 6 Missed 78 | . 24 8 45 . . 1 Hits 238 | . 66 26 136 5 . 5 Projectile 238 | . 66 26 136 5 . 5 Critical Strikes 5 | . 1 . 4 . . . Damage Taken 3559 | . 748 253 1576 40 . 942 Core 590 | . 124 41 199 . . 226 Absorbed by Shields . | . . . . . . . Regen/Repaired (Parts) 406 | . . . 406 . . . Core Remaining (%) 67 | 100 . 34 . . . . Volleys Fired 230 | 16 80 16 92 4 1 21 Largest 3 | 2 2 2 3 3 2 3 Hottest 100 | 70 40 40 100 69 46 69 Shots Fired 536 | 31 159 33 270 12 2 29 Gun 518 | 31 159 33 269 12 2 12 Cannon . | . . . . . . . Launcher 17 | . . . . . . 17 Special 1 | . . . 1 . . . Kinetic 503 | 16 159 33 269 12 2 12 Thermal 16 | 15 . . 1 . . . Explosive 17 | . . . . . . 17 Electromagnetic . | . . . . . . . Robot Hit Streak 19 | 5 17 4 19 2 . 3 Robot Miss Streak 5 | 2 5 5 4 4 . 3 Penetration Max . | . . . . . . . Secondary Targets 12 | . 3 1 7 1 . . Max Gunslinging Chain 1 | . 1 1 1 1 . . Shots Hit Robots 338 | 21 113 17 176 5 . 6 Core Hits 139 | 7 45 9 67 3 . 8 Critical Kills 2 | . 1 . 1 . . . Critical Parts Destroyed . | . . . . . . . Critical Strikes 3 | 1 1 . 1 . . . Burn 1 | 1 . . . . . . Destroy 2 | . 1 . 1 . . . Melee Attacks . | . . . . . . . Impact . | . . . . . . . Slashing . | . . . . . . . Piercing . | . . . . . . . Sneak Attacks . | . . . . . . . Combat Hostiles . | . . . . . . . Follow-up Attacks . | . . . . . . . Damage Inflicted 4748 | 220 1058 257 2727 63 . 423 Guns 4325 | 220 1004 229 2674 62 . 136 Cannons . | . . . . . . . Explosions 281 | . . . . . . 281 Melee . | . . . . . . . Ramming 142 | . 54 28 53 1 . 6 Kinetic 4200 | 95 1004 229 2674 62 . 136 Thermal 125 | 125 . . . . . . Explosive 281 | . . . . . . 281 Electromagnetic . | . . . . . . . Impact . | . . . . . . . Slashing . | . . . . . . . Piercing . | . . . . . . . Highest Corruption 7 | . 7 7 . . . 2 Average Corruption 6 | . 6 7 . . . 2 Corruption Purged . | . . . . . . . Corruption Blocked . | . . . . . . . Effects 35 | . 25 10 . . . . Message Errors 9 | . 6 3 . . . . Matter Fused 11 | . 9 2 . . . . Heat Flow Errors 3 | . 2 1 . . . . Energy Discharges 3 | . 2 1 . . . . Data Loss (minor) 4 | . 2 2 . . . . Data Loss (major) 2 | . 2 . . . . . Misfires 1 | . . 1 . . . . Alerts 1 | . 1 . . . . . Weapon Failures 1 | . 1 . . . . . Overload Shots . | . . . . . . . Overflow Damage 21 | . . . . . . 21 Projectiles . | . . . . . . . Explosions 21 | . . . . . . 21 Melee . | . . . . . . . Knockbacks . | . . . . . . . Impact . | . . . . . . . Kinetic . | . . . . . . . Secondary . | . . . . . . . Self-Inflicted Damage 633 | . . . . . . 633 Shots 16 | . . . . . . 16 Rammed 23 | . 9 5 7 1 . 1 Targets Rammed 26 | . 10 6 8 1 . 1 Kicked . | . . . . . . . Crushed 3 | . 1 1 1 . . . Highest Temperature 306 | 80 296 231 306 29 . 44 Average Temperature 49 | 29 29 82 60 15 . 20 Received Heat Transfer 1014 | . 369 60 558 . . 27 Siege Activations . | . . . . . . . Martial Activations . | . . . . . . . Shielding Activations . | . . . . . . . Robots Disrupted . | . . . . . . . Combat Hostiles . | . . . . . . . Robots Corrupted . | . . . . . . . Combat Hostiles . | . . . . . . . Parts Fried . | . . . . . . . Impact Corruptions 1 | . . . 1 . . . Robots Melted . | . . . . . . . Combat Hostiles . | . . . . . . . Parts Melted . | . . . . . . . Heat Transferred 444 | 444 . . . . . . Parts Sabotaged . | . . . . . . . Parts Stolen . | . . . . . . . Parts Stripped . | . . . . . . . Power Chain Reactions . | . . . . . . . Alert | -11 -10 -10 -9 -9 -9 -8 ------- Run | Yrd Mat Min Mat Min Exi Min Maximum Alert Level 2 | . 1 . 2 . . . Low Security (%) 73 | 100 98 100 45 100 . 100 Level 1 12 | . 1 . 26 . . . Level 2 13 | . . . 28 . . . Level 3 . | . . . . . . . Level 4 . | . . . . . . . Level 5 . | . . . . . . . High Security . | . . . . . . . Max Security . | . . . . . . . Peak Influence 494 | 5 200 62 494 181 . 96 Initial 181 | . . 37 20 181 . . Average 146 | 2 91 11 254 28 . 27 Influence Increases 2278 | 25 596 125 1203 85 . 244 Destroy 0b10 Robot/C 1360 | . 360 100 720 60 . 120 Destroy 0b10 Robot/NC 100 | 25 25 5 40 . . 5 Destroy Leader 326 | . 94 20 182 10 . 20 Allied During Kill 16 | . . . . . . 16 Successful Hack 97 | . 41 . 56 . . . Select Force Hacks 30 | . 30 . . . . . Disable Machine 60 | . . . 45 15 . . Destroy Structure 94 | . 1 . 10 . . 83 Lose Combat Pursuer 195 | . 45 . 150 . . . Influence Decreases 2268 | 25 500 167 791 551 . 234 Entered New Map 378 | . . 59 34 285 . . Time Decay 1742 | 25 490 98 717 266 . 146 Lost Part 108 | . 10 10 40 . . 48 Lost Ally 40 | . . . . . . 40 Squads Dispatched 8 | . 5 . 2 . . 1 Investigation 3 | . 2 . 1 . . . Extermination . | . . . . . . . Reinforcement 5 | . 3 . 1 . . 1 Assault . | . . . . . . . Garrison . | . . . . . . . Intercept . | . . . . . . . Searches Triggered . | . . . . . . . Construction Impeded 1 | . . . . . . 1 Haulers Reinforced . | . . . . . . . Active Scanning Responses . | . . . . . . . Cargo Convoy Interrupts . | . . . . . . . Stealth | -11 -10 -10 -9 -9 -9 -8 --------- Run | Yrd Mat Min Mat Min Exi Min Distress Signals 17 | . 5 . 12 . . . Communications Jammed . | . . . . . . . Distress Signals . | . . . . . . . Times Spotted 126 | . 36 5 77 3 . 5 Peak Tracking Total 6 | . 5 3 6 2 . 3 Tactical Retreats 9 | . 3 . 6 . . . Traps | -11 -10 -10 -9 -9 -9 -8 ------- Run | Yrd Mat Min Mat Min Exi Min Traps Triggered 6 | . 5 . 1 . . . Indirectly . | . . . . . . . Trap Hack Attempts . | . . . . . . . Triggered . | . . . . . . . Disarmed . | . . . . . . . Reprogrammed . | . . . . . . . Reused . | . . . . . . . Traps Extracted . | . . . . . . . Installed . | . . . . . . . Triggered . | . . . . . . . Machines | -11 -10 -10 -9 -9 -9 -8 ---------- Run | Yrd Mat Min Mat Min Exi Min Machines Disabled 5 | . . . 3 1 1 . Max in Single Turn 1 | . . . 1 1 1 . Machines Repaired . | . . . . . . . Machines Dismantled . | . . . . . . . Machines Sabotaged . | . . . . . . . Overloaded Fab Kills . | . . . . . . . Hacking | -11 -10 -10 -9 -9 -9 -8 --------- Run | Yrd Mat Min Mat Min Exi Min Machines Accessed 21 | . 7 . 13 . 1 . Terminals 13 | . 5 . 8 . . . Fabricators . | . . . . . . . Repair Stations 3 | . 1 . 2 . . . Recycling Units 2 | . 1 . 1 . . . Scanalyzers 2 | . . . 2 . . . Garrison Access . | . . . . . . . Total Hacks 76 | . 23 . 52 . 1 . Successful 48 | . 12 . 35 . 1 . Failed 28 | . 11 . 17 . . . Catastrophic 4 | . 3 . 1 . . . Database Lockouts . | . . . . . . . Manual 38 | . 10 . 27 . 1 . Terminals 52 | . 18 . 34 . . . Fabricators . | . . . . . . . Repair Stations 14 | . 2 . 12 . . . Recycling Units 5 | . 3 . 2 . . . Scanalyzers 4 | . . . 4 . . . Garrison Access . | . . . . . . . Terminal Hacks 22 | . 8 . 13 . 1 . Robot Analysis 4 | . 2 . 2 . . . Prototype ID Bank 6 | . 3 . 3 . . . Branch Access Points 1 | . . . 1 . . . Emergency Access Points 1 | . . . 1 . . . Terminal Index 1 | . . . 1 . . . Patrol Status 1 | . . . 1 . . . Transport Status 1 | . . . 1 . . . Hauler Manifests 2 | . 1 . 1 . . . Registered Components 2 | . 1 . 1 . . . Zone Layout 2 | . 1 . 1 . . . Proto ID Catalog 1 | . . . . . 1 . Fabricator Hacks . | . . . . . . . Repair Station Hacks 9 | . 1 . 8 . . . Scan Component 6 | . 1 . 5 . . . Repair 3 | . . . 3 . . . Recycling Unit Hacks 1 | . 1 . . . . . Retrieve Components 1 | . 1 . . . . . Scanalyzer 3 | . . . 3 . . . Insert Component 2 | . . . 2 . . . Analyze 1 | . . . 1 . . . Garrison Access Hacks . | . . . . . . . Unauthorized Hacks 13 | . 2 . 11 . . . Terminals 12 | . 1 . 11 . . . Track 3 | . . . 3 . . . Botnet 2 | . 1 . 1 . . . Disrupt 1 | . . . 1 . . . Operators 1 | . . . 1 . . . Skim 5 | . . . 5 . . . Fabricators . | . . . . . . . Repair Stations . | . . . . . . . Recycling Units 1 | . 1 . . . . . Tunnel 1 | . 1 . . . . . Scanalyzers . | . . . . . . . Garrison Access . | . . . . . . . Data Cores Recovered . | . . . . . . . Used . | . . . . . . . Hacking Detections 19 | . 6 . 13 . . . Full Trace Events 1 | . . . 1 . . . Feedback Events . | . . . . . . . Feedback Blocked . | . . . . . . . Robot Schematics Acquired . | . . . . . . . Robots Built . | . . . . . . . Authchips . | . . . . . . . Time . | . . . . . . . Total Robot Build Rating . | . . . . . . . Part Schematics Acquired . | . . . . . . . Parts Built . | . . . . . . . Authchips . | . . . . . . . Time . | . . . . . . . Total Part Build Rating . | . . . . . . . Parts Repaired 3 | . . . 3 . . . Time 94 | . . . 94 . . . Parts Recycled . | . . . . . . . Recycled Matter . | . . . . . . . Retrieved Matter . | . . . . . . . Retrieved Components 7 | . 7 . . . . . Parts Scanalyzed 1 | . . . 1 . . . Part Schematics Acquired . | . . . . . . . Parts Damaged . | . . . . . . . Bothacking | -11 -10 -10 -9 -9 -9 -8 ------------ Run | Yrd Mat Min Mat Min Exi Min Used RIF Installer . | . . . . . . . Robots Hacked . | . . . . . . . Non-combat . | . . . . . . . Combat . | . . . . . . . Robot Hacks Applied . | . . . . . . . Relay Couplers Released . | . . . . . . . Fabnet Peak Effective % . | . . . . . . . Robots Rewired . | . . . . . . . Allies Hacked . | . . . . . . . Hacks Repelled . | . . . . . . . Allies | -11 -10 -10 -9 -9 -9 -8 -------- Run | Yrd Mat Min Mat Min Exi Min Total Allies 3 | . . . . 3 . . Largest Group 3 | . . . . 3 3 3 Highest-Rated Group 40 | . . . . 40 40 40 Highest-Rated Ally 16 | . . . . 16 16 16 Total Orders . | . . . . . . . Ally Attacks 20 | . . . . . . 20 Total Damage 189 | . . . . . . 189 Kills 5 | . . . . . . 5 Allies Corrupted . | . . . . . . . Allies Melted . | . . . . . . . Intel | -11 -10 -10 -9 -9 -9 -8 ------- Run | Yrd Mat Min Mat Min Exi Min Active Infowar (turns) 6490 | 14 1225 453 1885 1615 695 603 Seismic 6490 | 14 1225 453 1885 1615 695 603 Robot Analysis Total 4 | . 2 . 2 . . . Derelict Logs Recovered 3 | . . 2 . 1 . . Drone Launches . | . . . . . . . Drone Recoveries . | . . . . . . . Exploration | -11 -10 -10 -9 -9 -9 -8 ------------- Run | Yrd Mat Min Mat Min Exi Min Turns Passed 8783 | 128 1381 453 3880 1615 695 631 Spaces Moved 2992 | 49 702 246 1101 500 217 177 Core . | . . . . . . . Treads 2726 | . 663 246 923 500 217 177 Legs 88 | 49 39 . . . . . Wheels 178 | . . . 178 . . . Hover . | . . . . . . . Flight . | . . . . . . . Fastest Speed 120 | 120 120 160 135 320 320 320 Average Speed 254 | 120 157 160 287 320 320 328 Slowest Speed 480 | 120 160 160 320 320 320 480 Overloaded Moves . | . . . . . . . Propulsion Burnouts . | . . . . . . . Robots Hopped . | . . . . . . . Potential Cave-ins . | . . . . . . . Cave-ins Triggered 1 | . . . . . . 1 Exploration Rate (%) 65 | 5 98 70 89 98 59 38 Regions Visited 6 Branch Regions 4 Pre-discovered Areas 3 | . 1 1 1 . . . Known Exits Taken 1 | . . . 1 . . . Unknown Exits Taken 5 | 1 1 1 . 1 1 . Scrap Searched 4 | . . . . 3 . 1 Spaces Dug 140 | . . . 1 . . 139 Terrain Destroyed 172 | . . . 1 . . 171 Melee . | . . . . . . . Projectile 1 | . . . 1 . . . AOE 171 | . . . . . . 171 Terrain Rammed . | . . . . . . . Walls Destroyed . | . . . . . . . Machines Disabled . | . . . . . . . Actions | -11 -10 -10 -9 -9 -9 -8 --------- Run | Yrd Mat Min Mat Min Exi Min Total 3719 | 90 838 269 1599 506 217 200 Wait 325 | 24 19 . 282 . . . Move 2986 | 48 701 245 1100 499 216 177 Hop . | . . . . . . . Pick Up 50 | 1 7 1 40 1 . . Fast Attach 5 | 1 1 1 2 . . . Attach 10 | . 1 . 9 . . . Detach 3 | . . . 3 . . . Swap 47 | . 9 . 37 . . 1 Drop 37 | . 10 . 26 1 . . Fire 230 | 16 80 16 92 4 1 21 Melee . | . . . . . . . Ram . | . . . . . . . Kick . | . . . . . . . Crush 26 | . 10 6 8 1 . 1 Escape Stasis . | . . . . . . . Rewire . | . . . . . . . Trap . | . . . . . . . Miscellaneous . | . . . . . . . Route ------- -11/Scrapyard -10/Materials (discovered 4 exits: *Mat x3 / [*Min]) -10/Mines (discovered 2 exits: *Mat x2) -9/Materials (discovered 4 exits: *Mat x3 / *Min) -9/Mines (discovered 3 exits: *Mat x2 / *Exi) -9/Exiles -8/Mines (discovered 1 exit: *Mat) History --------- Turn | Location | Event 1 | -11/Scrapyard | Discovered new exit (range 3) 129 | -11/Scrapyard | Entered Materials 308 | -10/Materials | Build established: Mutant 544 | -10/Materials | Discovered new exit (range 9) 789 | -10/Materials | Discovered new exit (range 8) 991 | -10/Materials | Discovered new exit (range 15) 1154 | -10/Materials | Discovered new exit (range 5) 1510 | -10/Materials | Entered Mines 1520 | -10/Mines | Discovered new exit (range 5) 1891 | -10/Mines | Found a damaged Exp. Sensor Array with a note attached 1895 | -10/Mines | Found Prototype Device 1915 | -10/Mines | Discovered new exit (range 13) 1924 | -10/Mines | Core integrity fell below 50% 1950 | -10/Mines | Learned location of 1 exit from Materials 1963 | -10/Mines | Entered Materials 1963 | -9/Materials | Evolved 2 slots: Utility x1, Weapon x1 1964 | -9/Materials | Identified exit to Materials 2084 | -9/Materials | Identified exit to Mines 2325 | -9/Materials | Repaired Broken Lgt. Treads 2411 | -9/Materials | Repaired Hrd. Light Armor Plating 2438 | -9/Materials | Repaired Lgt. Treads 2641 | -9/Materials | Build established: Tank 3009 | -9/Materials | Identified Exp. Sensor Array 4334 | -9/Materials | Learned location of 3 exits from Materials 4415 | -9/Materials | Build established: Scavenger-Tank 4440 | -9/Materials | Learned location of 2 exits from Materials 4547 | -9/Materials | Learned location of 1 exit from Recycling 4596 | -9/Materials | Learned Storage stockpile data 4653 | -9/Materials | Learned location of 1 exit from Recycling 5514 | -9/Materials | Build established: Tank 5843 | -9/Materials | Entered Mines 6141 | -9/Mines | A weapon hastily lodged in a ceiling crevice suddenly fell to the ground 6330 | -9/Mines | Learned location of 1 exit from Materials 6397 | -9/Mines | Discovered exit to Materials (range 12) 6770 | -9/Mines | Discovered exit to Materials (range 15) 6885 | -9/Mines | Deemed a non-threat by the Exiles lab entrance 6885 | -9/Mines | Discovered new exit (range 5) 7352 | -9/Mines | Assisted by bots powering up and referring to "LRC-V3" 7458 | -9/Mines | Entered Exiles 7458 | -9/Exiles | Accompanied by 3 allies 7532 | -9/Exiles | Met 8R-AWN 7593 | -9/Exiles | Met EX-HEX 7679 | -9/Exiles | Met EX-BIN 7718 | -9/Exiles | Aligned with FarCom system 7721 | -9/Exiles | Given EX-Vault access code 7801 | -9/Exiles | Opened EX-Vault 7890 | -9/Exiles | Warned to stay clear of 0b10 Research branches 7930 | -9/Exiles | Exiles lab attacked by MAIN.C 8117 | -9/Exiles | Discovered new exit (range 14) 8153 | -9/Exiles | Entered Mines 8153 | -8/Mines | Accompanied by 3 allies 8195 | -8/Mines | Discovered exit to Materials (range 10) 8440 | -8/Mines | Core integrity fell below 50% 8453 | -8/Mines | Build established: Skirmisher 8747 | -8/Mines | Crushed by falling debris 8747 | -8/Mines | Core integrity fell below 20% 8784 | -8/Mines | Destroyed self with Mini Grenade Launcher Last Messages --------------- 08748_ U-05 Engineer lays Concrete. 08749_ U-05 Engineer builds a Wall. 08755_ The unstable cave ceiling collapses. 08756_ K-01 Serf collects debris. 08756_ Seismic Detector destroyed. 08756_ Destroyed Seismic Detector. 08757_ U-05 Engineer lays Concrete. 08759_ K-01 Serf collects debris. 08759_ U-05 Engineer builds a Wall. 08760_ U-05 Engineer lays Concrete. 08761_ U-05 Engineer builds a Wall. 08762_ K-01 Serf collects debris. 08763_ U-05 Engineer builds a Wall. 08766_ K-01 Serf collects debris. 08767_ U-05 Engineer lays Concrete. 08770_ K-01 Serf collects debris. 08779_ The unstable cave ceiling collapses. 08780_ K-01 Serf collects debris. 08783_ Penetrated by Slug. 08784_ K-01 Serf collects debris. Map ----- +----------------------------------------------------+ | | | ?????????????????????????????????????????????? | | ????????????????#######??????????????????????? | | ????????????????## ##?????????????????????? | | ????????????????# ########??????????????? | | ????????????????# # # #??????????????? | | ????????????##### # # ##??????????????? | | ???????????## [ # # #??????????????? | | ?????????### ## # ###??????????????? | | ?????##### # = # #???????????????? | | ?????# ## ### # #???????????????? | | ?????## # ##### ####???????????????? | | ?????# ##?????????????????? | | ????## h ##????????????????? | | ????# # ##### k ##?????????g?????? | | ?????# # #???????????????? | | ?????## #### #??????????g????? | | ?????# #??# ## ##???????????????? | | ?????## #??##### #????????????????? | | ??????## ##??????## ## #????????????????? | | ???????# #????????#### ##???????????????? | | ???????#[%#???????????## #???????????????? | | ?????###!%###?????????# #???????????????? | | ######/%=% =#####?????## #???????????????? | | [ ###???# # ##????????????? | | ## #@k #????????????? | | ### ### #???????????? | | #?# # ??????? | | #?## #### ##### ?????? | | #??## ##????? ????? ## ?????? | | ##???## ##???????? ??????###???#??????? | | ??????# ### ##????????? ????????????????????? | | ??????# #?# #????????? ????????????????????? | | ??????# #?? #????????? ????????????????????? | | ??????# #?? #????????? ????????????????????? | | ??????# #?? #????????? ????????????????????? | | ??????# #?? #???????? ?????????????????????? | | ??????# #?? #????????# ?????????????????????? | | ??????# #?? ?????????##?????????????????????? | | ??????? ?? ????????????????????????????????? | | ??????? ???????????????????????????????????? | | ????????#????????????????????????????????????? | | ?????????????????????????????????????????????? | | ?????????????????????????????????????????????? | | ?????????????????????????????????????????????? | | ?????????????????????????????????????????????? | | ?????????????????????????????????????????????? | | ?????????????????????????????????????????????? | | ?????????????????????????????????????????????? | | ?????????????????????????????????????????????? | +----------------------------------------------------+ Best States ------------- Heat Dissipation 42 Energy Generation 14 Energy Capacity 265 Matter Stores 300 Matter Capacity 300 Sight Range 16 Terrain Scan Density 10 Armor Coverage 300 Evasion (%) 55 Recoil Reduction 2 Item Schematics ----------------- None Robot Schematics ------------------ None Fabricated ------------ Nothing Repaired ---------- Lgt. Treads | 19% | -9/Materials | Broken Hrd. Light Armor Plating | 11% | -9/Materials Lgt. Treads | 4% | -9/Materials Alien Tech Used ----------------- None Achievements -------------- None Challenges ------------ None Game ------ Seed ServoBehemothTrap Manual? 0 Play Time 00:38:06 Cumulative 456.0 hours Start 2025.06.18 @ 22:01:44 End 2025.06.18 @ 22:51:18 Sessions 1 Manual Loads 0 Difficulty Rogue Special Mode None Game No. 212 Rogue 212 Adventurer 0 Explorer 0 Win Type - Total 20 Types 6/3/6/2/1/0/1/0/0/1 Lore% 88 Gallery% 83 Achievement% 78 Wizard Run 0 Options --------- Layout 0 ASCII 0 Keyboard 0 Movement Arrows Keybinds 0 Fullscreen 2 Font 18/SmallcapsGlow Map View 76x50 Zoom Use 0% Tactical HUD 1 Map Filters NONE Filters NONE Steam 1 RUN: 596ce415-9a42-4d91-a145-fd14822aa6e7